fUSD/lending_fUSD_20250716
["ID","MTS","AMOUNT","RATE_DAILY","PERIOD"]
[372484030,1752660653694,-334.948153,0.00021917,2]
[372484033,1752660653704,-334.948153,0.00021917,2]
[372484035,1752660653714,-460.0,0.00021917,2]
[372484037,1752660653724,-460.0,0.00021917,2]
[372484039,1752660653734,-460.0,0.00021917,2]
[372484041,1752660653745,-802.92,0.00021917,2]
[372484043,1752660653754,-460.0,0.00021917,2]
[372484045,1752660653764,-1012.13,0.00021917,2]
[372484046,1752660653774,-1500.36,0.00021917,2]
[372484048,1752660653784,-500.0,0.00021917,2]
[372484050,1752660653794,-1943.02,0.00021917,2]
[372484053,1752660653804,-500.0,0.00021917,2]
[372484054,1752660653814,-500.0,0.00021917,2]
[372484055,1752660653824,-460.0,0.00021917,2]
[372484056,1752660653835,-500.0,0.00021917,2]
[372484057,1752660653846,-500.0,0.00021917,2]
[372484058,1752660653856,-500.0,0.00021917,2]
[372484059,1752660653866,-500.0,0.00021917,2]
[372484060,1752660653876,-460.0,0.00021917,2]
[372484062,1752660653886,-460.0,0.00021917,2]
[372484064,1752660653897,-460.0,0.00021917,2]
[372484066,1752660653907,-257.22585,0.00021917,2]
[372484068,1752660653917,-1357.0,0.00021917,2]
[372484070,1752660653927,-797.62,0.00021917,2]
[372484072,1752660653936,-460.0,0.00021917,2]
[372484074,1752660653946,-460.0,0.00021917,2]
[372484076,1752660653955,-460.0,0.00021917,2]
[372484078,1752660653966,-462.17036318,0.00021917,2]
[372484080,1752660653976,-460.0,0.00021917,2]
[372484082,1752660653986,-460.0,0.00021917,2]
[372484084,1752660653996,-460.0,0.00021917,2]
[372484086,1752660654007,-2736.49,0.00021917,2]
[372484089,1752660654018,-461.66072739,0.00021917,2]
[372484091,1752660654028,-460.0,0.00021917,2]
[372484093,1752660654038,-763.04,0.00021917,2]
[372484095,1752660654048,-189.494592,0.00021917,2]
[372484097,1752660654057,-313.201703,0.00021917,2]
[372484099,1752660654067,-189.494592,0.00021917,2]
[372484101,1752660654077,-313.201703,0.00021917,2]
[372484103,1752660654087,-189.494592,0.00021917,2]
[372484105,1752660654097,-313.201703,0.00021917,2]
[372484107,1752660654107,-460.0,0.00021917,2]
[372484109,1752660654117,-460.0,0.00021917,2]
[372484111,1752660654127,-1308.06,0.00021917,2]
[372484113,1752660654136,-910.0,0.00021917,2]
[372484115,1752660654146,-4317.42,0.00021917,2]
[372484117,1752660654155,-460.0,0.00021917,2]
[372484119,1752660654165,-460.0,0.00021917,2]
[372484121,1752660654175,-932.41,0.00021917,2]
[372484123,1752660654185,-460.0,0.00021917,2]
[372484125,1752660654195,-7819.85,0.00021917,2]
[372484127,1752660654204,-571.05,0.00021917,2]
[372484129,1752660654214,-168.64369747,0.00021917,2]
[372484132,1752660654225,-313.201703,0.00021917,2]
[372484133,1752660654235,-493.21432492,0.00021917,2]
[372484135,1752660654245,-460.0,0.00021917,2]
[372484137,1752660654254,-313.201703,0.00021917,2]
[372484139,1752660654264,-313.201703,0.00021917,2]
[372484141,1752660654273,-189.494592,0.00021917,2]
[372484143,1752660654283,-460.0,0.00021917,2]
[372484145,1752660654292,-466.66,0.00021917,2]
[372484147,1752660654302,-1020.98,0.00021917,2]
[372484150,1752660654312,-189.494592,0.00021917,2]
[372484152,1752660654322,-189.494592,0.00021917,2]
[372484154,1752660654332,-460.0,0.00021917,2]
[372484156,1752660654342,-851.31,0.00021917,2]
[372484158,1752660654351,-10002.5,0.00021917,2]
[372484160,1752660654361,-460.0,0.00021917,2]
[372484162,1752660654371,-892.348443,0.00021917,2]
[372484164,1752660654380,-156.478533,0.00021917,2]
[372484166,1752660654389,-892.348443,0.00021917,2]
[372484168,1752660654399,-1424.15,0.00021917,2]
[372484170,1752660654409,-156.478533,0.00021917,2]
[372484172,1752660654427,-18355.92,0.00021917,2]
[372484174,1752660654436,-156.478533,0.00021917,2]
[372484176,1752660654446,-892.348443,0.00021917,2]
[372484178,1752660654455,-1670.87,0.00021917,2]
[372484180,1752660654465,-460.0,0.00021917,2]
[372484182,1752660654475,-1968.26,0.00021917,2]
[372484184,1752660654486,-460.0,0.00021917,2]
[372484186,1752660654496,-1254.26,0.00021917,2]
[372484188,1752660654506,-460.0,0.00021917,2]
[372484190,1752660654516,-4198.09,0.00021917,2]
[372484192,1752660654526,-625.66,0.00021917,2]
[372484194,1752660654536,-2378.43,0.00021917,2]
[372484196,1752660654547,-156.478533,0.00021917,2]
[372484198,1752660654556,-892.348443,0.00021917,2]
[372484200,1752660654567,-540.63,0.00021917,5]
[372484202,1752660654577,-156.478533,0.00021917,2]
[372484204,1752660654587,-892.348443,0.00021917,2]
[372484206,1752660654598,-460.0,0.00021917,2]
[372484208,1752660654608,-156.478533,0.00021917,2]
[372484210,1752660654617,-892.348443,0.00021917,2]
[372484212,1752660654627,-460.0,0.00021917,2]
[372484214,1752660654637,-473.68,0.00021917,2]
[372484216,1752660654647,-700.23,0.00021917,2]
[372484218,1752660654657,-460.0,0.00021917,2]
[372484220,1752660654667,-691.15,0.00021917,2]
[372484222,1752660654676,-460.0,0.00021917,2]
[372484224,1752660654686,-460.0,0.00021917,2]
[372484226,1752660654695,-1393.57,0.00021917,2]
[372484228,1752660654706,-460.0,0.00021917,2]
[372484230,1752660654716,-4476.13,0.00021917,2]
[372484232,1752660654726,-1261.86,0.00021917,2]
[372484234,1752660654736,-500.0,0.00021917,2]
[372484236,1752660654746,-500.28,0.00021917,2]
[372484238,1752660654756,-500.0,0.00021917,2]
[372484240,1752660654766,-2896.16,0.00021917,2]
[372484242,1752660654775,-500.0,0.00021917,2]
[372484244,1752660654785,-5646.54,0.00021917,2]
[372484246,1752660654796,-470.063432,0.00021917,2]
[372484248,1752660654806,-500.0,0.00021917,2]
[372484251,1752660654817,-460.0,0.00021917,2]
[372484253,1752660654827,-929.99,0.00021917,2]
[372484255,1752660654837,-500.0,0.00021917,2]
[372484257,1752660654848,-460.0,0.00021917,2]
[372484259,1752660654858,-460.0,0.00021917,2]
[372484261,1752660654867,-460.0,0.00021917,2]
[372484263,1752660654880,-6681.17,0.00021917,2]
[372484265,1752660654890,-500.0,0.00021917,2]
[372484267,1752660654900,-775.59,0.00021917,2]
[372484269,1752660654910,-500.0,0.00021917,2]
[372484271,1752660654920,-500.0,0.00021917,2]
[372484273,1752660654929,-595.49,0.00021917,2]
[372484275,1752660654938,-460.0,0.00021917,2]
[372484277,1752660654948,-500.0,0.00021917,2]
[372484279,1752660654958,-500.0,0.00021917,2]
[372484281,1752660654968,-282.7349704,0.00021917,2]
[372484283,1752660654977,-460.0,0.00021917,2]
[372484285,1752660654987,-460.0,0.00021917,2]
[372484287,1752660654997,-13200.65,0.00021917,2]
[372484289,1752660655007,-9908.62,0.00021917,2]
[372484291,1752660655017,-460.0,0.00021917,2]
[372484294,1752660655028,-562.85,0.00021917,2]
[372484296,1752660655037,-460.0,0.00021917,2]
[372484297,1752660655047,-460.0,0.00021917,2]
[372484298,1752660655056,-541.37,0.00021917,2]
[372484299,1752660655066,-460.0,0.00021917,2]
[372484300,1752660655075,-460.0,0.00021917,2]
[372484301,1752660655084,-1269.14,0.00021917,2]
[372484302,1752660655093,-460.0,0.00021917,2]
[372484303,1752660655103,-151.0,0.00021917,2]
[372484305,1752660655112,-526.07,0.00021917,2]
[372484307,1752660655121,-151.0,0.00021917,2]
[372484309,1752660655130,-151.0,0.00021917,2]
[372484311,1752660655139,-460.0,0.00021917,2]
[372484312,1752660655149,-1107.13,0.00021917,2]
[372484314,1752660655159,-460.0,0.00021917,2]
[372484317,1752660655168,-1344.96,0.00021917,2]
[372484319,1752660655179,-769.75,0.00021917,2]
[372484321,1752660655189,-460.0,0.00021917,2]
[372484323,1752660655199,-460.0,0.00021917,2]
[372484325,1752660655208,-151.0,0.00021917,2]
[372484327,1752660655218,-460.0,0.00021917,2]
[372484329,1752660655227,-499.36,0.00021917,2]
[372484331,1752660655236,-151.0,0.00021917,2]
[372484333,1752660655245,-151.0,0.00021917,2]
[372484335,1752660655254,-460.0,0.00021917,2]
[372484337,1752660655264,-151.0,0.00021917,2]
[372484339,1752660655273,-151.0,0.00021917,2]
[372484341,1752660655282,-151.0,0.00021917,2]
[372484343,1752660655291,-460.0,0.00021917,2]
[372484345,1752660655301,-627.47,0.00021917,2]
[372484347,1752660655310,-2792.0,0.00021917,2]
[372484349,1752660655320,-627.47,0.00021917,2]
[372484351,1752660655329,-627.47,0.00021917,2]
[372484353,1752660655338,-153.57698,0.00021917,2]
[372484355,1752660655347,-4250.32,0.00021917,2]
[372484357,1752660655357,-627.47,0.00021917,2]
[372484359,1752660655366,-627.47,0.00021917,2]
[372484361,1752660655376,-3096.29,0.00021917,2]
[372484363,1752660655386,-460.0,0.00021917,2]
[372484365,1752660655396,-460.0,0.00021917,2]
[372484367,1752660655405,-627.47,0.00021917,2]
[372484369,1752660655416,-627.47,0.00021917,2]
[372484371,1752660655427,-460.0,0.00021917,2]
[372484373,1752660655436,-460.0,0.00021917,2]
[372484375,1752660655446,-627.47,0.00021917,2]
[372484376,1752660655456,-627.47,0.00021917,2]
[372484377,1752660655467,-675.72,0.00021917,2]
[372484378,1752660655477,-627.47,0.00021917,2]
[372484379,1752660655487,-627.47,0.00021917,2]
[372484380,1752660655498,-460.0,0.00021917,2]
[372484381,1752660655508,-151.0,0.00021917,2]
[372484382,1752660655517,-627.47,0.00021917,2]
[372484383,1752660655527,-460.0,0.00021917,2]
[372484384,1752660655536,-151.0,0.00021917,2]
[372484385,1752660655546,-869.65,0.00021917,2]
[372484386,1752660655556,-460.0,0.00021917,2]
[372484387,1752660655566,-151.0,0.00021917,2]
[372484389,1752660655575,-460.0,0.00021917,2]
[372484391,1752660655586,-1640.39,0.00021917,2]
[372484393,1752660655595,-460.0,0.00021917,2]
[372484395,1752660655606,-3822.37,0.00021917,2]
[372484398,1752660655616,-462.42014846,0.00021917,2]
[372484400,1752660655625,-3992.92,0.00021917,2]
[372484401,1752660655635,-4991.73,0.00021917,2]
[372484403,1752660655646,-6311.25,0.00021917,2]
[372484406,1752660655655,-535.28,0.00021917,2]
[372484408,1752660655665,-460.0,0.00021917,2]
[372484410,1752660655675,-460.0,0.00021917,2]
[372484411,1752660655685,-7973.62,0.00021917,2]
[372484413,1752660655695,-460.0,0.00021917,2]
[372484415,1752660655704,-460.0,0.00021917,2]
[372484417,1752660655713,-3106.99,0.00021917,2]
[372484419,1752660655723,-3447.45,0.00021917,2]
[372484421,1752660655733,-1150.44,0.00021917,2]
[372484423,1752660655742,-460.0,0.00021917,2]
[372484425,1752660655752,-1660.67,0.00021917,2]
[372484427,1752660655761,-504.37,0.00021917,2]
[372484439,1752660655871,-460.0,0.00021917,2]
[372484441,1752660655881,-547.19546923,0.00021917,2]
[372484443,1752660655891,-460.0,0.00021917,2]
[372484445,1752660655902,-15318.85,0.00021917,2]
[372484447,1752660655911,-1056.51,0.00021917,2]
[372484449,1752660655921,-5593.09,0.00021917,2]
[372484451,1752660655930,-460.0,0.00021917,2]
[372484453,1752660655939,-1940.98,0.00021917,2]
[372484455,1752660655949,-460.0,0.00021917,2]
[372484457,1752660655959,-460.0,0.00021917,2]
[372484459,1752660655968,-460.0,0.00021917,2]
[372484461,1752660655977,-644.83,0.00021917,2]
[372484463,1752660655986,-1164.25,0.00021917,2]
[372484465,1752660655996,-475.91,0.00021917,2]
[372484467,1752660656005,-461.94884471,0.00021917,2]
[372484469,1752660656014,-540.69,0.00021917,2]
[372484471,1752660656024,-2170.92,0.00021917,2]
[372484473,1752660656033,-460.0,0.00021917,2]
[372484475,1752660656042,-1162.58,0.00021917,2]
[372484477,1752660656052,-1712.6,0.00021917,2]
[372484478,1752660656061,-1612.05,0.00021917,2]
[372484479,1752660656071,-2824.95,0.00021917,2]
[372484480,1752660656081,-1832.63,0.00021917,2]
[372484481,1752660656091,-1323.9,0.00021917,2]
[372484482,1752660656100,-460.43728867,0.00021917,2]
[372484483,1752660656109,-10200.93,0.00021917,2]
[372484485,1752660656119,-460.0,0.00021917,2]
[372484487,1752660656130,-151.0,0.00021917,2]
[372484489,1752660656139,-151.0,0.00021917,2]
[372484491,1752660656149,-3802.81,0.00021917,2]
[372484493,1752660656159,-1734.88,0.00021917,2]
[372484495,1752660656168,-151.0,0.00021917,2]
[372484497,1752660656178,-728.49,0.00021917,2]
[372484499,1752660656198,-460.0,0.00021917,2]
[372484501,1752660656210,-460.0,0.00021917,2]
[372484503,1752660656221,-460.0,0.00021917,2]
[372484505,1752660656231,-1795.92,0.00021917,2]
[372484507,1752660656241,-460.0,0.00021917,2]
[372484509,1752660656251,-460.0,0.00021917,2]
[372484511,1752660656262,-6097.63,0.00021917,2]
[372484513,1752660656271,-460.0,0.00021917,2]
[372484515,1752660656281,-2041.96,0.00021917,2]
[372484517,1752660656290,-698.12,0.00021917,2]
[372484519,1752660656299,-1308.53,0.00021917,2]
[372484521,1752660656309,-460.0,0.00021917,2]
[372484523,1752660656318,-483.81585413,0.00021917,2]
[372484525,1752660656327,-460.0,0.00021917,2]
[372484527,1752660656336,-461.27931061,0.00021917,2]
[372484529,1752660656346,-5448.84,0.00021917,2]
[372484531,1752660656355,-526.5,0.00021917,2]
[372484533,1752660656364,-462.09173111,0.00021917,2]
[372484535,1752660656374,-3363.04,0.00021917,2]
[372484537,1752660656383,-618.46,0.00021917,2]
[372484539,1752660656393,-2044.29,0.00021917,2]
[372484541,1752660656402,-1704.74,0.00021917,2]
[372484543,1752660656413,-5082.1,0.00021917,2]
[372484545,1752660656425,-460.0,0.00021917,2]
[372484547,1752660656435,-460.0,0.00021917,2]
[372484549,1752660656444,-460.0,0.00021917,2]
[372484551,1752660656453,-460.0,0.00021917,2]
[372484554,1752660656464,-461.20468403,0.00021917,2]
[372484555,1752660656474,-1284.66,0.00021917,2]
[372484558,1752660656484,-593.51,0.00021917,2]
[372484560,1752660656495,-460.0,0.00021917,2]
[372484562,1752660656505,-3015.1,0.00021917,2]
[372484564,1752660656514,-500.80628056,0.00021917,2]
[372484566,1752660656523,-460.0,0.00021917,2]
[372484568,1752660656533,-3221.04,0.00021917,2]
[372484570,1752660656543,-9828.24,0.00021917,2]
[372484572,1752660656553,-1112.76,0.00021917,2]
[372484574,1752660656562,-152.70195244,0.00021917,2]
[372484576,1752660656572,-151.858535,0.00021917,2]
[372484578,1752660656583,-460.0,0.00021917,2]
[372484580,1752660656593,-1112.94,0.00021917,2]
[372484582,1752660656603,-460.0,0.00021917,2]
[372484584,1752660656612,-3787.38,0.00021917,2]
[372484585,1752660656622,-460.0,0.00021917,2]
[372484586,1752660656631,-2899.59,0.00021917,2]
[372484587,1752660656641,-2702.29,0.00021917,2]
[372484588,1752660656650,-460.89151191,0.00021917,2]
[372484590,1752660656660,-460.0,0.00021917,2]
[372484592,1752660656669,-460.0,0.00021917,2]
[372484594,1752660656679,-460.0,0.00021917,2]
[372484596,1752660656689,-460.0,0.00021917,2]
[372484598,1752660656698,-1496.95,0.00021917,2]
[372484600,1752660656708,-1905.37,0.00021917,2]
[372484603,1752660656718,-6958.25,0.00021917,2]
[372484605,1752660656728,-1173.06,0.00021917,2]
[372484607,1752660656738,-2089.36,0.00021917,2]
[372484609,1752660656747,-1144.25,0.00021917,2]
[372484611,1752660656756,-2089.36,0.00021917,2]
[372484613,1752660656765,-2252.84,0.00021917,2]
[372484614,1752660656774,-2089.36,0.00021917,2]
[372484616,1752660656786,-2089.36,0.00021917,2]
[372484618,1752660656796,-2089.36,0.00021917,2]
[372484620,1752660656805,-460.0,0.00021917,2]
[372484622,1752660656815,-7376.4,0.00021917,2]
[372484624,1752660656824,-2089.36,0.00021917,2]
[372484626,1752660656834,-2089.36,0.00021917,2]
[372484628,1752660656844,-2089.36,0.00021917,2]
[372484630,1752660656855,-460.0,0.00021917,2]
[372484632,1752660656865,-2089.36,0.00021917,2]
[372484634,1752660656875,-2089.36,0.00021917,2]
[372484636,1752660656884,-460.0,0.00021917,2]
[372484638,1752660656894,-2089.36,0.00021917,2]
[372484640,1752660656903,-460.0,0.00021917,2]
[372484642,1752660656913,-460.0,0.00021917,2]
[372484644,1752660656923,-2089.36,0.00021917,2]
[372484646,1752660656934,-460.0,0.00021917,2]
[372484648,1752660656943,-2064.55,0.00021917,2]
[372484650,1752660656953,-460.0,0.00021917,2]
[372484652,1752660656962,-502.39310709,0.00021917,2]
[372484654,1752660656971,-23284.95,0.00021917,2]
[372484656,1752660656982,-517.16,0.00021917,2]
[372484658,1752660656992,-2323.92,0.00021917,2]
[372484660,1752660657002,-460.0,0.00021917,2]
[372484662,1752660657011,-5002.78,0.00021917,2]
[372484664,1752660657020,-200.0,0.00021917,2]
[372484666,1752660657029,-208.450505,0.00021917,2]
[372484668,1752660657038,-460.0,0.00021917,2]
[372484670,1752660657048,-460.0,0.00021917,2]
[372484672,1752660657058,-460.0,0.00021917,2]
[372484674,1752660657067,-460.0,0.00021917,2]
[372484676,1752660657076,-841.8,0.00021917,2]
[372484679,1752660657086,-6454.39,0.00021917,2]
[372484680,1752660657095,-1895.36,0.00021917,2]
[372484682,1752660657105,-151.0,0.00021917,2]
[372484683,1752660657114,-460.0,0.00021917,2]
[372484684,1752660657124,-1099.43,0.00021917,2]
[372484685,1752660657133,-151.0,0.00021917,2]
[372484686,1752660657143,-2842.23,0.00021917,2]
[372484687,1752660657153,-151.0,0.00021917,2]
[372484689,1752660657163,-6466.79,0.00021917,2]
[372484691,1752660657172,-460.0,0.00021917,2]
[372484693,1752660657181,-460.0,0.00021917,2]
[372484695,1752660657192,-500.0,0.00021917,2]
[372484697,1752660657202,-460.0,0.00021917,2]
[372484699,1752660657211,-500.0,0.00021917,2]
[372484701,1752660657221,-500.0,0.00021917,2]
[372484703,1752660657230,-500.0,0.00021917,2]
[372484705,1752660657239,-460.0,0.00021917,2]
[372484707,1752660657249,-152.1895,0.00021917,2]
[372484709,1752660657258,-500.0,0.00021917,2]
[372484711,1752660657267,-460.0,0.00021917,2]
[372484713,1752660657277,-500.0,0.00021917,2]
[372484715,1752660657286,-151.0,0.00021917,2]
[372484717,1752660657296,-460.0,0.00021917,2]
[372484719,1752660657305,-151.0,0.00021917,2]
[372484721,1752660657315,-500.0,0.00021917,2]
[372484723,1752660657324,-460.0,0.00021917,2]
[372484725,1752660657334,-151.0,0.00021917,2]
[372484727,1752660657344,-1967.34,0.00021917,2]
[372484729,1752660657354,-460.0,0.00021917,2]
[372484731,1752660657363,-7593.72,0.00021917,2]
[372484733,1752660657373,-637.083823,0.00021917,2]
[372484735,1752660657383,-637.083823,0.00021917,2]
[372484737,1752660657393,-637.083823,0.00021917,2]
[372484739,1752660657403,-460.0,0.00021917,2]
[372484741,1752660657414,-460.0,0.00021917,2]
[372484743,1752660657431,-262.715112,0.00021917,2]
[372484745,1752660657441,-460.0,0.00021917,2]
[372484747,1752660657451,-151.0,0.00021917,2]
[372484749,1752660657461,-614.65,0.00021917,2]
[372484751,1752660657471,-262.715112,0.00021917,2]
[372484753,1752660657481,-151.0,0.00021917,2]
[372484755,1752660657491,-151.0,0.00021917,2]
[372484757,1752660657501,-1846.27,0.00021917,2]
[372484759,1752660657511,-460.0,0.00021917,2]
[372484761,1752660657522,-12906.6,0.00021917,2]
[372484763,1752660657532,-3400.3,0.00021917,2]
[372484765,1752660657541,-1491.55,0.00021917,2]
[372484767,1752660657551,-5691.55,0.00021917,2]
[372484768,1752660657560,-2635.84,0.00021917,2]
[372484769,1752660657570,-637.083823,0.00021917,2]
[372484770,1752660657579,-402.37133268,0.00021917,2]
[372484771,1752660657589,-637.083823,0.00021917,2]
[372484772,1752660657599,-1452.46,0.00021917,2]
[372484773,1752660657608,-5907.75,0.00021917,2]
[372484774,1752660657618,-637.083823,0.00021917,2]
[372484775,1752660657627,-10414.08,0.00021917,2]
[372484776,1752660657637,-6769.49,0.00021917,2]
[372484777,1752660657646,-460.0,0.00021917,2]
[372484778,1752660657655,-151.0,0.00021917,2]
[372484779,1752660657665,-460.0,0.00021917,2]
[372484780,1752660657675,-151.0,0.00021917,2]
[372484781,1752660657685,-151.0,0.00021917,2]
[372484782,1752660657694,-1678.8,0.00021917,2]
[372484783,1752660657704,-531.11,0.00021917,2]
[372484784,1752660657713,-262.715112,0.00021917,2]
[372484785,1752660657723,-538.0,0.00021917,2]
[372484786,1752660657733,-262.715112,0.00021917,2]
[372484787,1752660657742,-151.0,0.00021917,2]
[372484788,1752660657751,-460.0,0.00021917,2]
[372484789,1752660657761,-3625.03,0.00021917,2]
[372484790,1752660657771,-1972.1,0.00021917,2]
[372484791,1752660657781,-151.0,0.00021917,2]
[372484792,1752660657791,-151.0,0.00021917,2]
[372484793,1752660657801,-460.0,0.00021917,2]
[372484794,1752660657810,-157.681486,0.00021917,2]
[372484795,1752660657819,-151.712813,0.00021917,2]
[372484796,1752660657829,-2009.29,0.00021917,2]
[372484797,1752660657838,-460.99355165,0.00021917,2]
[372484798,1752660657848,-1874.08,0.00021917,2]
[372484799,1752660657857,-151.0,0.00021917,2]
[372484800,1752660657867,-466.12448087,0.00021917,2]
[372484801,1752660657877,-460.0,0.00021917,2]
[372484802,1752660657889,-460.0,0.00021917,2]
[372484803,1752660657899,-460.0,0.00021917,2]
[372484804,1752660657910,-468.62,0.00021917,2]
[372484805,1752660657919,-5410.31,0.00021917,2]
[372484806,1752660657929,-685.4,0.00021917,2]
[372484807,1752660657939,-35346.5,0.00021917,2]
[372484808,1752660657949,-5734.21,0.00021917,2]
[372484809,1752660657959,-550.67709717,0.00021917,2]
[372484810,1752660657968,-460.78601271,0.00021917,2]
[372484811,1752660657977,-543.12,0.00021917,2]
[372484812,1752660657987,-151.0,0.00021917,2]
[372484813,1752660657996,-6456.25,0.00021917,2]
[372484814,1752660658006,-460.0,0.00021917,2]
[372484815,1752660658015,-151.0,0.00021917,2]
[372484816,1752660658025,-453.98541708,0.00021917,2]
[372484817,1752660658034,-151.0,0.00021917,2]
[372484818,1752660658044,-460.0,0.00021917,2]
[372484819,1752660658053,-1479.89,0.00021917,2]
[372484820,1752660658063,-1265.57,0.00021917,2]
[372484821,1752660658072,-1196.52,0.00021917,2]
[372484822,1752660658082,-564.76,0.00021917,2]
[372484823,1752660658091,-10244.45,0.00021917,2]
[372484824,1752660658101,-151.0,0.00021917,2]
[372484825,1752660658110,-151.0,0.00021917,2]
[372484826,1752660658120,-151.0,0.00021917,2]
[372484827,1752660658129,-1374.75,0.00021917,2]
[372484828,1752660658139,-460.0,0.00021917,2]
[372484829,1752660658149,-2858.21,0.00021917,2]
[372484830,1752660658158,-460.0,0.00021917,2]
[372484831,1752660658168,-151.0,0.00021917,2]
[372484832,1752660658177,-954.51,0.00021917,2]
[372484833,1752660658187,-151.0,0.00021917,2]
[372484834,1752660658196,-460.0,0.00021917,2]
[372484835,1752660658205,-460.0,0.00021917,2]
[372484836,1752660658215,-151.0,0.00021917,2]
[372484837,1752660658225,-460.0,0.00021917,2]
[372484838,1752660658234,-460.0,0.00021917,2]
[372484839,1752660658244,-6715.53,0.00021917,2]
[372484840,1752660658254,-151.0,0.00021917,2]
[372484841,1752660658265,-460.0,0.00021917,2]
[372484842,1752660658275,-151.0,0.00021917,2]
[372484843,1752660658285,-894.02,0.00021917,2]
[372484844,1752660658296,-460.0,0.00021917,2]
[372484845,1752660658312,-147573.51,0.00021917,2]
[372484846,1752660658321,-460.0,0.00021917,2]
[372484847,1752660658331,-460.0,0.00021917,2]
[372484848,1752660658341,-714.75,0.00021917,2]
[372484849,1752660658350,-3828.74,0.00021917,2]
[372484850,1752660658359,-867.73,0.00021917,2]
[372484851,1752660658368,-2977.68,0.00021917,2]
[372484852,1752660658377,-7316.6,0.00021917,2]
[372484853,1752660658386,-8659.03,0.00021917,2]
[372484854,1752660658395,-24414.02,0.00021917,2]
[372484855,1752660658404,-6125.38,0.00021917,2]
[372484856,1752660658414,-1141.14,0.00021917,2]
[372484857,1752660658425,-460.0,0.00021917,2]
[372484858,1752660658434,-460.0,0.00021917,2]
[372484859,1752660658443,-460.0,0.00021917,2]
[372484860,1752660658453,-460.0,0.00021917,2]
[372484861,1752660658463,-460.0,0.00021917,2]
[372484862,1752660658472,-523.34,0.00021917,2]
[372484863,1752660658481,-460.0,0.00021917,2]
[372484864,1752660658492,-461.68048605,0.00021917,2]
[372484865,1752660658501,-3203.66,0.00021917,2]
[372484866,1752660658511,-7429.62,0.00021917,2]
[372484867,1752660658520,-460.0,0.00021917,2]
[372484868,1752660658530,-13999.33,0.00021917,2]
[372484869,1752660658539,-876.73,0.00021917,2]
[372484870,1752660658549,-460.0,0.00021917,2]
[372484871,1752660658558,-213.48614129,0.00021917,2]
[372484872,1752660658567,-460.0,0.00021917,2]
[372484873,1752660658577,-1821.19,0.00021917,2]
[372484874,1752660658586,-3506.64,0.00021917,2]
[372484875,1752660658596,-1107.27,0.00021917,2]
[372484876,1752660658605,-3889.49,0.00021917,2]
[372484877,1752660658615,-460.0,0.00021917,2]
[372484878,1752660658626,-460.0,0.00021917,2]
[372484879,1752660658636,-3070.2,0.00021917,2]
[372484880,1752660658646,-1677.72,0.00021917,2]
[372484881,1752660658655,-2045.2,0.00021917,2]
[372484882,1752660658665,-3615.28,0.00021917,2]
[372484883,1752660658674,-4289.09,0.00021917,2]
[372484884,1752660658684,-1964.91,0.00021917,2]
[372484885,1752660658694,-460.0,0.00021917,2]